[Event "Titled Tuesday Blitz February 21 Late 2023"]
[White "Manukyan, Sargis V."]
[Black "Tarnowska, Aleksandra"]
[WhiteFideId "13303465"]
[BlackFideId "1180967"]
[WhiteElo "2253"]
[BlackElo "1835"]
[Result "1-0"]
[Round "02"]
[TimeControl "180+2"]
[Date "2023.02.21"]
[WhiteClock "0:00:20"]
[BlackClock "0:00:01"]

1. Nf3 {[%clk 0:03:00]}  d5 {[%clk 0:02:59]} 2. d4 {[%clk 0:03:01]}  Nf6 {[%clk 0:02:58]} 3. g3 {[%clk 0:03:01]}  e6 {[%clk 0:02:57]} 4. Bg2 {[%clk 0:03:02]}  Bb4+ {[%clk 0:02:55]} 5. c3 {[%clk 0:03:01]}  Be7 {[%clk 0:02:54]} 6. O-O {[%clk 0:03:02]}  O-O {[%clk 0:02:54]} 7. c4 {[%clk 0:03:01]}  b6 {[%clk 0:02:49]} 8. Ne5 {[%clk 0:03:01]}  Bb7 {[%clk 0:02:49]} 9. Nc3 {[%clk 0:03:02]}  Nbd7 {[%clk 0:02:47]} 10. Qa4 {[%clk 0:03:02]}  c5 {[%clk 0:02:38]} 11. Nxd7 {[%clk 0:03:02]}  Nxd7 {[%clk 0:02:34]} 12. cxd5 {[%clk 0:03:00]}  cxd4 {[%clk 0:02:27]} 13. Qxd4 {[%clk 0:02:59]}  Bf6 {[%clk 0:02:16]} 14. Qd1 {[%clk 0:02:57]}  Bxc3 {[%clk 0:01:50]} 15. bxc3 {[%clk 0:02:57]}  exd5 {[%clk 0:01:51]} 16. Bxd5 {[%clk 0:02:56]}  Bxd5 {[%clk 0:01:52]} 17. Qxd5 {[%clk 0:02:57]}  Qe7 {[%clk 0:01:51]} 18. Bf4 {[%clk 0:02:49]}  Nf6 {[%clk 0:01:45]} 19. Qf3 {[%clk 0:02:44]}  Rfe8 {[%clk 0:01:37]} 20. Rfe1 {[%clk 0:02:36]}  Rac8 {[%clk 0:01:28]} 21. Bg5 {[%clk 0:02:31]}  Rc5 {[%clk 0:01:04]} 22. Bxf6 {[%clk 0:02:18]}  gxf6 {[%clk 0:00:50]} 23. Rad1 {[%clk 0:02:12]}  Rec8 {[%clk 0:00:47]} 24. Rd3 {[%clk 0:02:11]}  Qe6 {[%clk 0:00:41]} 25. a3 {[%clk 0:02:09]}  Qh3 {[%clk 0:00:25]} 26. Red1 {[%clk 0:02:00]}  Rh5 {[%clk 0:00:23]} 27. Qh1 {[%clk 0:01:57]}  Qg4 {[%clk 0:00:19]} 28. R1d2 {[%clk 0:01:49]}  Kg7 {[%clk 0:00:16]} 29. Qg2 {[%clk 0:01:40]}  Rhc5 {[%clk 0:00:12]} 30. Rd4 {[%clk 0:01:38]}  Qf5 {[%clk 0:00:11]} 31. e4 {[%clk 0:01:29]}  Qg4 {[%clk 0:00:05]} 32. e5 {[%clk 0:01:25]}  Qg6 {[%clk 0:00:02]} 33. exf6+ {[%clk 0:01:21]}  Qxf6 {[%clk 0:00:03]} 34. Rg4+ {[%clk 0:01:20]}  Kh8 {[%clk 0:00:03]} 35. h4 {[%clk 0:01:08]}  Rxc3 {[%clk 0:00:03]} 36. Qd5 {[%clk 0:01:01]}  Rxa3 {[%clk 0:00:02]} 37. h5 {[%clk 0:00:54]}  Ra1+ {[%clk 0:00:02]} 38. Kh2 {[%clk 0:00:52]}  Re1 {[%clk 0:00:03]} 39. Rf4 {[%clk 0:00:43]}  Qh6 {[%clk 0:00:02]} 40. Qxf7 {[%clk 0:00:36]}  Ree8 {[%clk 0:00:01]} 41. Rd7 {[%clk 0:00:35]}  Rg8 {[%clk 0:00:01]} 42. Rf6 {[%clk 0:00:20]} 1-0


[Site "https://www.chess.com"]

[Event "Titled Tuesday Blitz February 21 Late 2023"]
[White "Adel, Sara"]
[Black "Delorme, Axel"]
[WhiteFideId "10616764"]
[BlackFideId "632023"]
[WhiteElo "1739"]
[BlackElo "2483"]
[Result "0-1"]
[Round "02"]
[TimeControl "180+2"]
[Date "2023.02.21"]
[WhiteClock "0:00:16"]
[BlackClock "0:00:12"]

1. e4 {[%clk 0:02:58]}  c5 {[%clk 0:02:59]} 2. Nf3 {[%clk 0:02:57]}  d6 {[%clk 0:02:59]} 3. d4 {[%clk 0:02:57]}  cxd4 {[%clk 0:03:00]} 4. Nxd4 {[%clk 0:02:58]}  Nf6 {[%clk 0:03:00]} 5. Nc3 {[%clk 0:02:58]}  a6 {[%clk 0:03:01]} 6. f3 {[%clk 0:02:55]}  e5 {[%clk 0:03:01]} 7. Nb3 {[%clk 0:02:55]}  Be6 {[%clk 0:03:01]} 8. Be3 {[%clk 0:02:54]}  Be7 {[%clk 0:03:02]} 9. Qd2 {[%clk 0:02:50]}  O-O {[%clk 0:03:02]} 10. g4 {[%clk 0:02:50]}  b5 {[%clk 0:03:01]} 11. g5 {[%clk 0:02:44]}  b4 {[%clk 0:02:59]} 12. Ne2 {[%clk 0:02:42]}  Ne8 {[%clk 0:02:58]} 13. h4 {[%clk 0:02:35]}  a5 {[%clk 0:02:57]} 14. h5 {[%clk 0:02:29]}  a4 {[%clk 0:02:50]} 15. Nbc1 {[%clk 0:02:28]}  d5 {[%clk 0:02:50]} 16. exd5 {[%clk 0:02:23]}  Qxd5 {[%clk 0:02:50]} 17. Nd3 {[%clk 0:02:15]}  Nc6 {[%clk 0:02:41]} 18. g6 {[%clk 0:02:13]}  Qxf3 {[%clk 0:02:31]} 19. Rg1 {[%clk 0:02:13]}  fxg6 {[%clk 0:02:21]} 20. hxg6 {[%clk 0:02:09]}  Bh4+ {[%clk 0:02:21]} 21. Kd1 {[%clk 0:02:06]}  Qxf1+ {[%clk 0:02:15]} 22. Rxf1 {[%clk 0:01:52]}  Rxf1+ {[%clk 0:02:16]} 23. Ne1 {[%clk 0:01:52]}  Rxe1+ {[%clk 0:02:16]} 24. Qxe1 {[%clk 0:01:51]}  Bxe1 {[%clk 0:02:17]} 25. gxh7+ {[%clk 0:01:51]}  Kxh7 {[%clk 0:02:17]} 26. Kxe1 {[%clk 0:01:49]}  Nf6 {[%clk 0:02:16]} 27. Ng3 {[%clk 0:01:45]}  a3 {[%clk 0:02:11]} 28. b3 {[%clk 0:01:40]}  Nd4 {[%clk 0:02:10]} 29. Bxd4 {[%clk 0:01:39]}  exd4 {[%clk 0:02:11]} 30. Kd2 {[%clk 0:01:39]}  Rc8 {[%clk 0:02:05]} 31. Rh1+ {[%clk 0:01:38]}  Kg8 {[%clk 0:02:04]} 32. Rh4 {[%clk 0:01:39]}  Bg4 {[%clk 0:01:24]} 33. Kd3 {[%clk 0:01:01]}  Rc3+ {[%clk 0:01:21]} 34. Kxd4 {[%clk 0:00:58]}  Rxg3 {[%clk 0:01:22]} 35. Kc4 {[%clk 0:00:59]}  Rc3+ {[%clk 0:00:47]} 36. Kxb4 {[%clk 0:00:58]}  Rxc2 {[%clk 0:00:47]} 37. Kxa3 {[%clk 0:00:58]}  g5 {[%clk 0:00:46]} 38. Rh1 {[%clk 0:00:57]}  Bf3 {[%clk 0:00:45]} 39. Rg1 {[%clk 0:00:55]}  g4 {[%clk 0:00:45]} 40. b4 {[%clk 0:00:56]}  Ne4 {[%clk 0:00:42]} 41. Kb3 {[%clk 0:00:56]}  Rc8 {[%clk 0:00:41]} 42. b5 {[%clk 0:00:51]}  g3 {[%clk 0:00:41]} 43. a4 {[%clk 0:00:50]}  g2 {[%clk 0:00:41]} 44. b6 {[%clk 0:00:49]}  Ng3 {[%clk 0:00:24]} 45. a5 {[%clk 0:00:46]}  Ne2 {[%clk 0:00:24]} 46. Re1 {[%clk 0:00:20]}  Rc1 {[%clk 0:00:14]} 47. Rxe2 {[%clk 0:00:16]}  Bxe2 {[%clk 0:00:12]} 48. b7 {[%clk 0:00:16]}  Rb1+ {[%clk 0:00:12]} 0-1


[Site "https://www.chess.com"]

[Event "Titled Tuesday Blitz February 21 Late 2023"]
[White "Michalski, Olaf"]
[Black "Rengifo Blancas, Renzo Jhonathan"]
[WhiteFideId "1106740"]
[BlackFideId "3807185"]
[WhiteElo "2273"]
[BlackElo "2131"]
[Result "0-1"]
[Round "02"]
[TimeControl "180+2"]
[Date "2023.02.21"]
[WhiteClock "0:00:13"]
[BlackClock "0:02:04"]

1. d4 {[%clk 0:02:56]}  d5 {[%clk 0:03:00]} 2. c4 {[%clk 0:02:55]}  c6 {[%clk 0:02:57]} 3. cxd5 {[%clk 0:02:54]}  cxd5 {[%clk 0:02:57]} 4. Nc3 {[%clk 0:02:55]}  Nc6 {[%clk 0:02:57]} 5. e4 {[%clk 0:02:54]}  Nf6 {[%clk 0:02:58]} 6. e5 {[%clk 0:02:51]}  Ne4 {[%clk 0:02:34]} 7. f3 {[%clk 0:02:04]}  Nxc3 {[%clk 0:02:33]} 8. bxc3 {[%clk 0:02:05]}  e6 {[%clk 0:02:33]} 9. Bd3 {[%clk 0:02:01]}  Qa5 {[%clk 0:02:25]} 10. Bd2 {[%clk 0:01:58]}  Ba3 {[%clk 0:02:25]} 11. Rb1 {[%clk 0:01:53]}  Qd8 {[%clk 0:02:23]} 12. f4 {[%clk 0:01:44]}  O-O {[%clk 0:02:21]} 13. Nf3 {[%clk 0:01:43]}  f5 {[%clk 0:02:22]} 14. exf6 {[%clk 0:01:40]}  Qxf6 {[%clk 0:02:21]} 15. O-O {[%clk 0:01:32]}  Bd6 {[%clk 0:02:19]} 16. Ne5 {[%clk 0:01:31]}  g6 {[%clk 0:02:14]} 17. Qa4 {[%clk 0:01:05]}  Ne7 {[%clk 0:02:09]} 18. Nd7 {[%clk 0:00:58]}  Bxd7 {[%clk 0:02:09]} 19. Qxd7 {[%clk 0:00:59]}  Rad8 {[%clk 0:02:06]} 20. Qxb7 {[%clk 0:00:53]}  Nf5 {[%clk 0:02:05]} 21. g3 {[%clk 0:00:33]}  Nxd4 {[%clk 0:02:05]} 22. cxd4 {[%clk 0:00:30]}  Qxd4+ {[%clk 0:02:04]} 23. Kh1 {[%clk 0:00:20]}  Qxd3 {[%clk 0:02:04]} 24. Ba5 {[%clk 0:00:15]}  Qe4+ {[%clk 0:02:03]} 25. Kg1 {[%clk 0:00:13]}  Bc5+ {[%clk 0:02:04]} 0-1


[Site "https://www.chess.com"]

[Event "Titled Tuesday Blitz February 21 Late 2023"]
[White "Marin Masis, Jose Esteban"]
[Black "Ozdemir, Serhan Berat"]
[WhiteFideId "6508146"]
[BlackFideId "6374611"]
[WhiteElo "1938"]
[BlackElo "2223"]
[Result "0-1"]
[Round "02"]
[TimeControl "180+2"]
[Date "2023.02.21"]
[WhiteClock "0:00:14"]
[BlackClock "0:00:58"]

1. e4 {[%clk 0:03:00]}  c5 {[%clk 0:02:59]} 2. Nf3 {[%clk 0:02:59]}  e6 {[%clk 0:02:59]} 3. d4 {[%clk 0:02:57]}  cxd4 {[%clk 0:03:00]} 4. Nxd4 {[%clk 0:02:57]}  a6 {[%clk 0:03:00]} 5. c4 {[%clk 0:02:56]}  Nf6 {[%clk 0:02:57]} 6. Nc3 {[%clk 0:02:55]}  Bb4 {[%clk 0:02:53]} 7. Bd3 {[%clk 0:02:54]}  Nc6 {[%clk 0:02:52]} 8. Nxc6 {[%clk 0:02:52]}  dxc6 {[%clk 0:02:47]} 9. O-O {[%clk 0:02:47]}  e5 {[%clk 0:02:45]} 10. Bg5 {[%clk 0:02:44]}  h6 {[%clk 0:02:44]} 11. Bh4 {[%clk 0:02:44]}  Be7 {[%clk 0:02:38]} 12. Qb3 {[%clk 0:02:37]}  Qc7 {[%clk 0:02:35]} 13. Bg3 {[%clk 0:02:32]}  Be6 {[%clk 0:02:33]} 14. Qc2 {[%clk 0:02:29]}  O-O {[%clk 0:02:31]} 15. b3 {[%clk 0:02:27]}  Rad8 {[%clk 0:02:29]} 16. Rad1 {[%clk 0:02:25]}  Nh5 {[%clk 0:02:27]} 17. Be2 {[%clk 0:02:21]}  Nf4 {[%clk 0:02:26]} 18. Bf3 {[%clk 0:02:16]}  g5 {[%clk 0:02:07]} 19. Bxf4 {[%clk 0:01:58]}  gxf4 {[%clk 0:02:08]} 20. Na4 {[%clk 0:01:24]}  Kh8 {[%clk 0:01:56]} 21. Nb2 {[%clk 0:01:22]}  Rg8 {[%clk 0:01:55]} 22. Nd3 {[%clk 0:01:16]}  f6 {[%clk 0:01:44]} 23. c5 {[%clk 0:01:10]}  Qc8 {[%clk 0:01:41]} 24. g3 {[%clk 0:01:05]}  fxg3 {[%clk 0:01:35]} 25. hxg3 {[%clk 0:01:04]}  Bg4 {[%clk 0:01:34]} 26. Qe2 {[%clk 0:01:02]}  h5 {[%clk 0:01:32]} 27. b4 {[%clk 0:00:59]}  Bxf3 {[%clk 0:01:28]} 28. Qxf3 {[%clk 0:00:58]}  Qg4 {[%clk 0:01:28]} 29. Kg2 {[%clk 0:00:40]}  Rd4 {[%clk 0:01:23]} 30. Qxg4 {[%clk 0:00:26]}  hxg4 {[%clk 0:01:19]} 31. Rfe1 {[%clk 0:00:16]}  Rgd8 {[%clk 0:01:19]} 32. Re3 {[%clk 0:00:15]}  a5 {[%clk 0:01:11]} 33. a3 {[%clk 0:00:15]}  axb4 {[%clk 0:01:10]} 34. axb4 {[%clk 0:00:16]}  Kg7 {[%clk 0:01:05]} 35. Ree1 {[%clk 0:00:15]}  Rxd3 {[%clk 0:01:01]} 36. Ra1 {[%clk 0:00:14]}  Rb3 {[%clk 0:00:57]} 37. Ra7 {[%clk 0:00:14]}  Rxb4 {[%clk 0:00:58]} 0-1


[Site "https://www.chess.com"]

[Event "Titled Tuesday Blitz February 21 Late 2023"]
[White "Tymrakiewicz, Rafal"]
[Black "Winkels, Marcel"]
[WhiteFideId "1108832"]
[BlackFideId "1003887"]
[WhiteElo "2144"]
[BlackElo "1960"]
[Result "1-0"]
[Round "02"]
[TimeControl "180+2"]
[Date "2023.02.21"]
[WhiteClock "0:01:03"]
[BlackClock "0:00:01"]

1. e4 {[%clk 0:03:00]}  c5 {[%clk 0:02:59]} 2. c3 {[%clk 0:03:00]}  e5 {[%clk 0:02:57]} 3. Nf3 {[%clk 0:02:58]}  Nc6 {[%clk 0:02:56]} 4. Bc4 {[%clk 0:02:56]}  Nf6 {[%clk 0:02:52]} 5. O-O {[%clk 0:02:55]}  Be7 {[%clk 0:02:51]} 6. Re1 {[%clk 0:02:53]}  O-O {[%clk 0:02:50]} 7. a3 {[%clk 0:02:54]}  d6 {[%clk 0:02:46]} 8. b4 {[%clk 0:02:54]}  Bg4 {[%clk 0:02:36]} 9. h3 {[%clk 0:02:52]}  Bh5 {[%clk 0:02:32]} 10. d3 {[%clk 0:02:53]}  a6 {[%clk 0:02:29]} 11. g4 {[%clk 0:02:46]}  Bg6 {[%clk 0:02:27]} 12. Qb3 {[%clk 0:02:46]}  b5 {[%clk 0:02:20]} 13. Bd5 {[%clk 0:02:45]}  Nxd5 {[%clk 0:02:19]} 14. Qxd5 {[%clk 0:02:45]}  Qc7 {[%clk 0:02:14]} 15. Be3 {[%clk 0:02:43]}  cxb4 {[%clk 0:01:58]} 16. axb4 {[%clk 0:02:43]}  Rac8 {[%clk 0:01:58]} 17. h4 {[%clk 0:02:30]}  h5 {[%clk 0:01:50]} 18. g5 {[%clk 0:02:26]}  Ra8 {[%clk 0:01:39]} 19. Nbd2 {[%clk 0:02:25]}  Kh7 {[%clk 0:01:32]} 20. Nf1 {[%clk 0:02:23]}  f5 {[%clk 0:01:23]} 21. gxf6 {[%clk 0:02:11]}  Bxf6 {[%clk 0:01:18]} 22. Qb3 {[%clk 0:02:07]}  Qe7 {[%clk 0:01:11]} 23. Ng5+ {[%clk 0:02:02]}  Bxg5 {[%clk 0:01:04]} 24. Bxg5 {[%clk 0:02:02]}  Qf7 {[%clk 0:00:58]} 25. Qxf7 {[%clk 0:01:58]}  Rxf7 {[%clk 0:00:57]} 26. Ne3 {[%clk 0:01:56]}  Ne7 {[%clk 0:00:49]} 27. Kg2 {[%clk 0:01:53]}  Rc8 {[%clk 0:00:38]} 28. Rec1 {[%clk 0:01:48]}  d5 {[%clk 0:00:33]} 29. Bxe7 {[%clk 0:01:45]}  Rxe7 {[%clk 0:00:29]} 30. Nxd5 {[%clk 0:01:45]}  Re6 {[%clk 0:00:28]} 31. Ra3 {[%clk 0:01:39]}  Bf7 {[%clk 0:00:26]} 32. Kf1 {[%clk 0:01:34]}  Rd6 {[%clk 0:00:22]} 33. Ke2 {[%clk 0:01:13]}  Bxd5 {[%clk 0:00:18]} 34. exd5 {[%clk 0:01:14]}  Rxd5 {[%clk 0:00:18]} 35. Rxa6 {[%clk 0:01:14]}  Rcd8 {[%clk 0:00:18]} 36. Rd1 {[%clk 0:01:14]}  e4 {[%clk 0:00:17]} 37. d4 {[%clk 0:01:13]}  Rf5 {[%clk 0:00:16]} 38. Re6 {[%clk 0:01:09]}  Rc8 {[%clk 0:00:14]} 39. Rc1 {[%clk 0:01:07]}  Rf3 {[%clk 0:00:13]} 40. Rxe4 {[%clk 0:01:06]}  Rcxc3 {[%clk 0:00:13]} 41. Rxc3 {[%clk 0:01:07]}  Rxc3 {[%clk 0:00:11]} 42. d5 {[%clk 0:01:08]}  Rc8 {[%clk 0:00:08]} 43. Kd3 {[%clk 0:01:07]}  Kg8 {[%clk 0:00:06]} 44. Rf4 {[%clk 0:01:05]}  Rd8 {[%clk 0:00:04]} 45. Kd4 {[%clk 0:01:05]}  g6 {[%clk 0:00:03]} 46. Kc5 {[%clk 0:01:05]}  Kg7 {[%clk 0:00:03]} 47. d6 {[%clk 0:01:03]}  Kg8 {[%clk 0:00:01]} 48. Kc6 {[%clk 0:01:03]}  Rc8+ {[%clk 0:00:01]} 49. Kxb5 {[%clk 0:01:03]} 1-0


[Site "https://www.chess.com"]

[Event "Titled Tuesday Blitz February 21 Late 2023"]
[White "Figorito, Nick"]
[Black "Avgoustopoulos, Christian"]
[WhiteFideId "30923689"]
[BlackFideId "2122294"]
[WhiteElo "2036"]
[BlackElo "1969"]
[Result "1-0"]
[Round "02"]
[TimeControl "180+2"]
[Date "2023.02.21"]
[WhiteClock "0:01:31"]
[BlackClock "0:01:05"]

1. Nf3 {[%clk 0:03:00]}  d6 {[%clk 0:02:57]} 2. g3 {[%clk 0:03:01]}  e5 {[%clk 0:02:57]} 3. Bg2 {[%clk 0:03:01]}  Nf6 {[%clk 0:02:56]} 4. O-O {[%clk 0:03:01]}  Be7 {[%clk 0:02:56]} 5. c4 {[%clk 0:03:01]}  O-O {[%clk 0:02:56]} 6. Nc3 {[%clk 0:03:02]}  h6 {[%clk 0:02:52]} 7. d3 {[%clk 0:03:02]}  Be6 {[%clk 0:02:51]} 8. e4 {[%clk 0:02:57]}  Nbd7 {[%clk 0:02:50]} 9. Be3 {[%clk 0:02:53]}  Ng4 {[%clk 0:02:40]} 10. Bd2 {[%clk 0:02:49]}  f5 {[%clk 0:02:38]} 11. exf5 {[%clk 0:02:49]}  Bxf5 {[%clk 0:02:36]} 12. Ne1 {[%clk 0:02:45]}  Ngf6 {[%clk 0:02:35]} 13. Bxb7 {[%clk 0:02:43]}  Rb8 {[%clk 0:02:34]} 14. Bg2 {[%clk 0:02:42]}  Rxb2 {[%clk 0:02:33]} 15. Rb1 {[%clk 0:02:31]}  Qb8 {[%clk 0:02:29]} 16. Qc1 {[%clk 0:02:21]}  Rxb1 {[%clk 0:02:27]} 17. Qxb1 {[%clk 0:02:22]}  Qxb1 {[%clk 0:02:24]} 18. Nxb1 {[%clk 0:02:23]}  Rb8 {[%clk 0:02:21]} 19. Nc3 {[%clk 0:02:20]}  Rb2 {[%clk 0:02:21]} 20. Bc1 {[%clk 0:02:18]}  Rc2 {[%clk 0:02:17]} 21. Nxc2 {[%clk 0:02:18]}  Bxd3 {[%clk 0:02:16]} 22. Ne3 {[%clk 0:02:14]}  Bxf1 {[%clk 0:02:14]} 23. Kxf1 {[%clk 0:02:15]}  Nc5 {[%clk 0:02:07]} 24. Ncd5 {[%clk 0:02:11]}  Bd8 {[%clk 0:02:04]} 25. Nxf6+ {[%clk 0:02:11]}  Bxf6 {[%clk 0:01:56]} 26. Nd5 {[%clk 0:02:11]}  Bd8 {[%clk 0:01:55]} 27. Be3 {[%clk 0:02:11]}  Nd3 {[%clk 0:01:49]} 28. Bxa7 {[%clk 0:02:07]}  Nb2 {[%clk 0:01:47]} 29. Ne3 {[%clk 0:02:02]}  Bg5 {[%clk 0:01:44]} 30. Bb8 {[%clk 0:01:58]}  Bd8 {[%clk 0:01:42]} 31. Ke2 {[%clk 0:01:50]}  Kf7 {[%clk 0:01:41]} 32. Kd2 {[%clk 0:01:49]}  Ke6 {[%clk 0:01:39]} 33. Kc2 {[%clk 0:01:47]}  Na4 {[%clk 0:01:38]} 34. Ba7 {[%clk 0:01:43]}  g6 {[%clk 0:01:24]} 35. Kb3 {[%clk 0:01:42]}  Nb6 {[%clk 0:01:22]} 36. Bxb6 {[%clk 0:01:41]}  cxb6 {[%clk 0:01:21]} 37. Nd5 {[%clk 0:01:41]}  Kf5 {[%clk 0:01:14]} 38. h3 {[%clk 0:01:35]}  g5 {[%clk 0:01:12]} 39. Ne3+ {[%clk 0:01:33]}  Ke6 {[%clk 0:01:10]} 40. Kb4 {[%clk 0:01:32]}  h5 {[%clk 0:01:05]} 41. Kb5 {[%clk 0:01:31]} 1-0


[Site "https://www.chess.com"]

[Event "Titled Tuesday Blitz February 21 Late 2023"]
[White "Chemin, Justo Reinaldo"]
[Black "Kalajzic, Ivan"]
[WhiteFideId "2101580"]
[BlackFideId "14506378"]
[WhiteElo "2040"]
[BlackElo "2062"]
[Result "0-1"]
[Round "02"]
[TimeControl "180+2"]
[Date "2023.02.21"]
[WhiteClock "0:00:01"]
[BlackClock "0:00:11"]

1. d4 {[%clk 0:03:00]}  Nc6 {[%clk 0:02:59]} 2. Nf3 {[%clk 0:03:00]}  d6 {[%clk 0:03:00]} 3. d5 {[%clk 0:02:58]}  Ne5 {[%clk 0:02:59]} 4. Bf4 {[%clk 0:02:45]}  Ng6 {[%clk 0:02:56]} 5. Bg3 {[%clk 0:02:44]}  e5 {[%clk 0:02:56]} 6. e4 {[%clk 0:02:42]}  Be7 {[%clk 0:02:56]} 7. c4 {[%clk 0:02:37]}  Nh6 {[%clk 0:02:54]} 8. Nc3 {[%clk 0:02:36]}  O-O {[%clk 0:02:54]} 9. Bd3 {[%clk 0:02:30]}  f5 {[%clk 0:02:54]} 10. exf5 {[%clk 0:02:27]}  Nxf5 {[%clk 0:02:54]} 11. Qc2 {[%clk 0:02:21]}  Bd7 {[%clk 0:02:30]} 12. O-O-O {[%clk 0:02:17]}  a6 {[%clk 0:02:27]} 13. Kb1 {[%clk 0:02:13]}  Qe8 {[%clk 0:02:18]} 14. Ne4 {[%clk 0:02:05]}  b6 {[%clk 0:01:57]} 15. h4 {[%clk 0:01:58]}  h6 {[%clk 0:01:51]} 16. h5 {[%clk 0:01:54]}  Nf4 {[%clk 0:01:50]} 17. Bxf4 {[%clk 0:01:53]}  exf4 {[%clk 0:01:51]} 18. Rde1 {[%clk 0:01:50]}  Qf7 {[%clk 0:01:47]} 19. Qd2 {[%clk 0:01:40]}  Rae8 {[%clk 0:01:22]} 20. Qxf4 {[%clk 0:01:38]}  Bd8 {[%clk 0:01:11]} 21. Ng3 {[%clk 0:01:12]}  Nxg3 {[%clk 0:01:08]} 22. Qxg3 {[%clk 0:01:04]}  Bf5 {[%clk 0:01:02]} 23. Bxf5 {[%clk 0:00:52]}  Qxf5+ {[%clk 0:01:02]} 24. Ka1 {[%clk 0:00:52]}  Bf6 {[%clk 0:01:02]} 25. Qg6 {[%clk 0:00:43]}  Rxe1+ {[%clk 0:00:50]} 26. Rxe1 {[%clk 0:00:42]}  Qf4 {[%clk 0:00:47]} 27. Qe4 {[%clk 0:00:33]}  Qxe4 {[%clk 0:00:38]} 28. Rxe4 {[%clk 0:00:31]}  Kf7 {[%clk 0:00:39]} 29. Kb1 {[%clk 0:00:27]}  Rb8 {[%clk 0:00:39]} 30. Kc2 {[%clk 0:00:27]}  b5 {[%clk 0:00:39]} 31. cxb5 {[%clk 0:00:26]}  Rxb5 {[%clk 0:00:39]} 32. b3 {[%clk 0:00:26]}  Rxd5 {[%clk 0:00:39]} 33. Rc4 {[%clk 0:00:26]}  c5 {[%clk 0:00:39]} 34. Ra4 {[%clk 0:00:17]}  Rxh5 {[%clk 0:00:38]} 35. Rxa6 {[%clk 0:00:17]}  Ke6 {[%clk 0:00:38]} 36. a4 {[%clk 0:00:14]}  Rh1 {[%clk 0:00:36]} 37. Nd2 {[%clk 0:00:14]}  Rg1 {[%clk 0:00:28]} 38. g3 {[%clk 0:00:13]}  Rg2 {[%clk 0:00:26]} 39. Ne4 {[%clk 0:00:12]}  Ke5 {[%clk 0:00:23]} 40. Nxd6 {[%clk 0:00:12]}  Rxf2+ {[%clk 0:00:22]} 41. Kd3 {[%clk 0:00:12]}  Rf3+ {[%clk 0:00:22]} 42. Kc4 {[%clk 0:00:12]}  Rxg3 {[%clk 0:00:22]} 43. a5 {[%clk 0:00:10]}  h5 {[%clk 0:00:18]} 44. Ra8 {[%clk 0:00:07]}  g5 {[%clk 0:00:14]} 45. Nf7+ {[%clk 0:00:05]}  Kf4 {[%clk 0:00:13]} 46. a6 {[%clk 0:00:04]}  Rc3+ {[%clk 0:00:12]} 47. Kd5 {[%clk 0:00:02]}  Rxb3 {[%clk 0:00:12]} 48. a7 {[%clk 0:00:01]}  Ra3 {[%clk 0:00:12]} 49. Rf8 {[%clk 0:00:01]}  Rxa7 {[%clk 0:00:11]} 0-1


[Site "https://www.chess.com"]

[Event "Titled Tuesday Blitz February 21 Late 2023"]
[White "Gatterer, Florian"]
[Black "Torres Dominguez, David"]
[WhiteFideId "811688"]
[BlackFideId "2220857"]
[WhiteElo "2170"]
[BlackElo "1994"]
[Result "0-1"]
[Round "02"]
[TimeControl "180+2"]
[Date "2023.02.21"]
[WhiteClock "0:00:01"]
[BlackClock "0:02:09"]

1. d4 {[%clk 0:03:00]}  e5 {[%clk 0:02:59]} 2. dxe5 {[%clk 0:03:00]}  d6 {[%clk 0:03:00]} 3. Nf3 {[%clk 0:02:58]}  Bg4 {[%clk 0:03:00]} 4. Bg5 {[%clk 0:02:57]}  Qd7 {[%clk 0:02:59]} 5. Nbd2 {[%clk 0:02:53]}  Nc6 {[%clk 0:02:59]} 6. c3 {[%clk 0:02:49]}  dxe5 {[%clk 0:02:58]} 7. Qa4 {[%clk 0:02:44]}  f6 {[%clk 0:02:58]} 8. Bh4 {[%clk 0:02:35]}  Nh6 {[%clk 0:02:57]} 9. h3 {[%clk 0:02:33]}  Be6 {[%clk 0:02:55]} 10. g4 {[%clk 0:02:28]}  O-O-O {[%clk 0:02:53]} 11. O-O-O {[%clk 0:02:26]}  Qf7 {[%clk 0:02:44]} 12. b3 {[%clk 0:02:14]}  Kb8 {[%clk 0:02:43]} 13. e3 {[%clk 0:02:07]}  Be7 {[%clk 0:02:40]} 14. Bc4 {[%clk 0:02:03]}  Bxc4 {[%clk 0:02:38]} 15. Qxc4 {[%clk 0:02:02]}  Qxc4 {[%clk 0:02:36]} 16. Nxc4 {[%clk 0:02:01]}  Rxd1+ {[%clk 0:02:37]} 17. Rxd1 {[%clk 0:02:00]}  Rd8 {[%clk 0:02:37]} 18. Rxd8+ {[%clk 0:02:00]}  Bxd8 {[%clk 0:02:38]} 19. e4 {[%clk 0:01:54]}  Kc8 {[%clk 0:02:36]} 20. Nfd2 {[%clk 0:01:53]}  Kd7 {[%clk 0:02:34]} 21. f3 {[%clk 0:01:53]}  Be7 {[%clk 0:02:34]} 22. Bf2 {[%clk 0:01:52]}  a6 {[%clk 0:02:33]} 23. b4 {[%clk 0:01:46]}  b5 {[%clk 0:02:32]} 24. Ne3 {[%clk 0:01:46]}  Nf7 {[%clk 0:02:30]} 25. Kc2 {[%clk 0:01:32]}  Bd8 {[%clk 0:02:28]} 26. Nd5 {[%clk 0:01:28]}  Ne7 {[%clk 0:02:28]} 27. Ne3 {[%clk 0:01:26]}  c6 {[%clk 0:02:28]} 28. Nf5 {[%clk 0:01:16]}  g6 {[%clk 0:02:24]} 29. Nxe7 {[%clk 0:01:16]}  Bxe7 {[%clk 0:02:25]} 30. Nb3 {[%clk 0:01:13]}  Ng5 {[%clk 0:02:22]} 31. Bc5 {[%clk 0:01:04]}  Nxh3 {[%clk 0:02:15]} 32. Bxe7 {[%clk 0:01:04]}  Kxe7 {[%clk 0:02:15]} 33. Nc5 {[%clk 0:01:05]}  Ng1 {[%clk 0:02:16]} 34. Nxa6 {[%clk 0:01:03]}  Nxf3 {[%clk 0:02:14]} 35. Nb8 {[%clk 0:01:01]}  Kd6 {[%clk 0:02:13]} 36. Kd3 {[%clk 0:01:01]}  h5 {[%clk 0:02:13]} 37. gxh5 {[%clk 0:01:01]}  gxh5 {[%clk 0:02:14]} 38. Ke3 {[%clk 0:01:01]}  Ng5 {[%clk 0:02:14]} 39. Na6 {[%clk 0:00:59]}  h4 {[%clk 0:02:13]} 40. Nc5 {[%clk 0:00:56]}  h3 {[%clk 0:02:13]} 41. Kf2 {[%clk 0:00:57]}  Ne6 {[%clk 0:02:13]} 42. Nb7+ {[%clk 0:00:33]}  Kc7 {[%clk 0:02:11]} 43. Na5 {[%clk 0:00:32]}  Nf4 {[%clk 0:02:10]} 44. Kg3 {[%clk 0:00:32]}  Ne2+ {[%clk 0:02:08]} 45. Kxh3 {[%clk 0:00:32]}  Nxc3 {[%clk 0:02:08]} 46. Kg4 {[%clk 0:00:32]}  Nxe4 {[%clk 0:02:07]} 47. Kf5 {[%clk 0:00:32]}  Nc3 {[%clk 0:02:07]} 48. Kxf6 {[%clk 0:00:30]}  e4 {[%clk 0:02:06]} 49. Nb3 {[%clk 0:00:27]}  e3 {[%clk 0:02:06]} 50. Nd4 {[%clk 0:00:26]}  e2 {[%clk 0:02:06]} 51. Nxe2 {[%clk 0:00:25]}  Nxe2 {[%clk 0:02:07]} 52. Ke5 {[%clk 0:00:25]}  Nc3 {[%clk 0:02:07]} 53. a3 {[%clk 0:00:23]}  Nb1 {[%clk 0:02:07]} 54. a4 {[%clk 0:00:23]}  bxa4 {[%clk 0:02:07]} 55. Kd4 {[%clk 0:00:24]}  a3 {[%clk 0:02:07]} 56. Kd3 {[%clk 0:00:23]}  a2 {[%clk 0:02:08]} 57. Kc2 {[%clk 0:00:24]}  Nc3 {[%clk 0:02:08]} 58. Kb2 {[%clk 0:00:23]}  Kb6 {[%clk 0:02:08]} 59. Ka1 {[%clk 0:00:24]}  Kb5 {[%clk 0:02:08]} 60. Kb2 {[%clk 0:00:24]}  Kxb4 {[%clk 0:02:09]} 61. Ka1 {[%clk 0:00:25]}  c5 {[%clk 0:02:08]} 62. Kb2 {[%clk 0:00:25]}  c4 {[%clk 0:02:09]} 63. Ka1 {[%clk 0:00:26]}  Kc5 {[%clk 0:02:09]} 64. Kb2 {[%clk 0:00:27]}  Kd4 {[%clk 0:02:10]} 65. Ka1 {[%clk 0:00:28]}  Kd3 {[%clk 0:02:10]} 66. Kb2 {[%clk 0:00:28]}  Kd2 {[%clk 0:02:10]} 67. Ka1 {[%clk 0:00:29]}  Na4 {[%clk 0:02:09]} 68. Kxa2 {[%clk 0:00:28]}  c3 {[%clk 0:02:10]} 69. Kb3 {[%clk 0:00:29]}  c2 {[%clk 0:02:10]} 70. Kb4 {[%clk 0:00:29]}  c1=Q {[%clk 0:02:11]} 71. Kb5 {[%clk 0:00:03]}  Qc5+ {[%clk 0:02:09]} 72. Kxa4 {[%clk 0:00:01]}  Qb6 {[%clk 0:02:09]} 0-1


[Site "https://www.chess.com"]